Workbook

Sheet 例題32 非等温PBR
A1: 微分方程式数 | B1: 2 | F1: Pt= | G1: 126.7 | H1: kPa | I1: 全圧 | M1: L | N1: 触媒量W | O1: 元問題条件 | Q1: 化学工学会編：BASICによる化学工学プログラミング, p. 149, 例題10.3, 培風館 (1985)
A2: W= | B2: xA= | C2: T= | F2: T0= | G2: 398.15 | H2: K | M2: m | N2: kg | O2: R0= | P2: 0.025 | Q2: m | R2: 反応管半径
A3: 0.6 | B3: 0.9954316341 | C3: 462.9045216 | F3: FA0= | G3: 0.00248 | H3: mol/s | I3: Benzene | M3: 0.1 | N3: =M3*3.14*$P$2^2*$P$4 -> 0.2355 | O3: A | P3: =3.14*P2^2 -> 0.0019625 | Q3: m2 | R3: 管断面積
B4: xA'= | C4: T'= | F4: FB0= | G4: 0.0744 | H4: mol/s | I4: Hydrogen | M4: 0.2 | N4: =M4*3.14*$P$2^2*$P$4 -> 0.471 | O4: ρB= | P4: 1200 | Q4: kg/m3 | R4: 触媒層密度
A5: 微分方程式→ | B5: =G21/G3 -> 0.08030920543 | C5: =((-1*G26*G25*(C3-G24)/G27)+(-G21)*(G23))/(G8*G22) -> -169.6089196 | F5: FA= | G5: =G3*(1-B3) -> 1.132954737e-05 | H5: mol/s | I5: Benzene | M5: 0.25 | N5: =M5*3.14*$P$2^2*$P$4 -> 0.58875 | O5: Tw= | P5: 373.15 | Q5: K | R5: 壁温度
F6: FB= | G6: =G4-G3*B3 -> 0.07193132955 | H6: mol/s | I6: Hydrogen | M6: 0.255 | N6: =M6*3.14*$P$2^2*$P$4 -> 0.600525 | O6: h0= | P6: 75.4 | Q6: J/(m2 s K) | R6: 伝熱係数
A7: 積分区間W=[a, | B7: 0 | F7: FC= | G7: =G3*B3 -> 0.002468670453 | H7: mol/s | I7: Cyclohexan | O7: Pt= | P7: 1.292 | Q7: Kg/cm2 | R7: 全圧
A8: b] | B8: 0.6 | F8: ΣFi= | G8: =SUM(G5:G7) -> 0.07441132955 | H8: mol/s | O8: G= | P8: 0.1753 | Q8: kg/(m2 s) | R8: 質量速度 | T8: =K3*P12/P3 -> 0
A9: 積分刻み幅ΔW | B9: 0.01 | F9: c0= | G9: =1/(0.0224*(101/G1)*(G2/273.15)) -> 38.42038456 | H9: mol/m3 | I9: 入口原料全濃度 | O9: T0= | P9: 398.15 | Q9: K | R9: 入口ガス温度
A10: 計算結果 | F10: c= | G10: =1/(0.0224*(101/G1)*(C3/273.15)) -> 33.0458559 | H10: mol/m3 | I10: 原料全濃度(温度圧力変化) | O10: yB0= | P10: 0.0323 | R10: 入口ﾍﾞﾝｾﾞﾝモル分率
A11: W[kg] | B11: xA | C11: T[K] | F11: cA0= | G11: =G3/G12 -> 1.239367244 | H11: mol/m3 | I11: ベンゼン供給濃度 | O11: θH= | P11: 30 | R11: 水素の流量比
A12: 0 | B12: 0 | C12: =P9 -> 398.15 | E12: ←初期値 | F12: F0= | G12: =(G3+G4)/G9 -> 0.002001021095 | H12: m3/s | I12: 入口原料ガス | O12: Mav= | P12: 0.00447 | Q12: kg/mol | R12: 反応ガス平均分子量
A13: 0.01 | B13: 0.03579953919 | C13: 404.9066157 | F13: F= | G13: =G8/G10 -> 0.00225175979 | H13: m3/s | O13: Cp= | P13: 7270 | Q13: J/(kg K) | R13: 反応ガス熱容量
A14: 0.02 | B14: 0.0843394629 | C14: 414.1239035 | F14: cA= | G14: =G5/G13 -> 0.005031419169 | H14: mol/m3 | I14: Benzene | O14: ΔH= | P14: -206000 | Q14: J/mol | R14: 反応熱
A15: 0.03 | B15: 0.1544074419 | C15: 427.5532372 | F15: cB= | G15: =G6/G13 -> 31.94449508 | H15: mol/m3 | I15: Hydrogen
A16: 0.04 | B16: 0.256050848 | C16: 447.1860375 | F16: cC= | G16: =G7/G13 -> 1.096329397 | H16: mol/m3 | I16: Cyclohexan | O16: GA= | P16: =P8*3.14*P2^2 -> 0.00034402625 | Q16: kg/s | R16: 全供給
A17: 0.05 | B17: 0.3694775507 | C17: 468.8850658 | F17: k= | G17: =3214000*EXP(-6093/C3) -> 6.174854211 | O17: Fmol= | P17: =P16/P12 -> 0.07696336689 | Q17: mol/s | R17: 全供給
A18: 0.06 | B18: 0.4520561298 | C18: 483.8790784 | F18: KA= | G18: =0.00000008769*3.72*EXP(5640/C3) -> 0.06381313189 | O18: F0 | P18: =P17*22.4*0.001*(P9/273)*(101.15/G1) -> 0.002007268281 | Q18: m3/s | R18: 全供給
A19: 0.07 | B19: 0.5057639945 | C19: 492.6729747 | F19: KB= | G19: =0.000000001044*3.72*EXP(7805/C3) -> 0.08163034047
A20: 0.08 | B20: 0.5436954554 | C20: 498.0573081 | F20: KC= | G20: =0.000000565*3.73*EXP(4481/C3) -> 0.03371373662
A21: 0.09 | B21: 0.5729695123 | C21: 501.555663 | F21: -rA'= | G21: =G17*G19^3*G18*G15^3*G14/(1+G19*G15+G18*G14+G20*G16)^4 -> 0.0001991668295 | H21: mol/kg-s | O21: k | P21: =3214000*EXP(-6093/P9) -> 0.7259669171 | Q21: mol/kg-s
A22: 0.1 | B22: 0.5970633811 | C22: 503.9182839 | F22: Cp= | G22: 32.4969 | H22: J/mol-K | I22: ガス熱容量 | O22: KB,KA,KCはpA[kPa]=(pt/c)cA[mol/m3]で係数を変換c=34.0 (450Kの値）を使用
A23: 0.11 | B23: 0.6178066344 | C23: 505.5434043 | F23: ΔrH= | G23: -206000 | H23: J/mol | I23: 反応熱(発熱) | O23: -rA'=((3214000*EXP(-6093/T))*(3.88e-9*exp(7805/T))^3*(3.26e-7*exp(5640/T))*C(Hydrogen)^3*C(Benzene))/(1+(3.88e-9*exp(7805/T))*C(Hydrogen)+(3.26e-7*exp(5640/T))*C(Benzene)+(1.84e-6*exp(4481/T))*C(Cyclohexane))^4
A24: 0.12 | B24: 0.636246535 | C24: 506.6609986 | F24: Ta= | G24: 373.15 | H24: K
A25: 0.13 | B25: 0.6530259818 | C25: 507.4134788 | F25: a= | G25: 80 | H25: /m
A26: 0.14 | B26: 0.6685620051 | C26: 507.8940191 | F26: U= | G26: 75.4 | H26: J/m2- s- K | M26: COCO計算結果 | T26: CCO | X26: Excel
A27: 0.15 | B27: 0.6831370117 | C27: 508.1662553 | F27: ρb= | G27: 1200 | H27: kg/m3 | M27: L | N27: V | O27: 触媒量W | P27: T | Q27: T K | R27: Benzene | S27: xA | U27: rxn1 rate | X27: W | Y27: -rA'=
A28: 0.16 | B28: 0.6969487551 | C28: 508.2751347 | M28: m | N28: m3 | O28: kg | U28: kmol/h kg | V28: mol/s kg | X28: 0 | Y28: 0.00775
A29: 0.17 | B29: 0.7101393445 | C29: 508.2532493 | L29: 0 | M29: 0 | N29: =3.14*$P$2^2*M29 -> 0 | O29: =N29*$G$27 -> 0 | P29: 125 | Q29: =P29+273 -> 398 | R29: 0.0089 | S29: =1-R29/$R$29 -> 0 | T29: 0 | U29: 0.0279 | V29: =U29*1000/3600 -> 0.00775 | X29: 0.03 | Y29: 0.0211
A30: 0.18 | B30: 0.7228129304 | C30: 508.1247189 | L30: 1 | M30: 0.01275 | N30: =3.14*$P$2^2*M30 -> 2.5021875e-05 | O30: 0.03002625 | P30: 157.4 | Q30: =P30+273 -> 430.4 | R30: 0.00748 | S30: 0.1595505618 | T30: 0.015 | U30: 0.0445 | V30: =U30*1000/3600 -> 0.01236111111 | X30: 0.045 | Y30: 0.0287
A31: 0.19 | B31: 0.735046947 | C31: 507.9076733 | L31: 2 | M31: 0.0255 | N31: =3.14*$P$2^2*M31 -> 5.004375e-05 | O31: 0.0600525 | P31: 215.2 | Q31: 488.2 | R31: 0.00486 | S31: 0.4539325843 | T31: 0.03002625 | U31: 0.0827 | V31: =U31*1000/3600 -> 0.02297222222 | X31: 0.06 | Y31: 0.01592
A32: 0.2 | B32: 0.7468995164 | C32: 507.615896 | L32: 3 | M32: 0.03825 | N32: 7.5065625e-05 | O32: 0.09007875 | P32: 230.7 | Q32: 503.7 | R32: 0.00391 | S32: 0.5606741573 | T32: 0.045 | U32: 0.1 | V32: 0.02777777778 | X32: 0.075 | Y32: 0.00932
A33: 0.21 | B33: 0.7584144752 | C33: 507.2599458 | L33: 4 | M33: 0.051 | N33: 0.0001000875 | O33: 0.120105 | P33: 235.2 | Q33: 508.2 | R33: 0.003389 | S33: 0.6192134831 | T33: 0.0600525 | U33: 0.0507 | V33: =U33*1000/3600 -> 0.01408333333 | X33: 0.09 | Y33: 0.0065
A34: 0.22 | B34: 0.7696248793 | C34: 506.8479444 | L34: 5 | M34: 0.06375 | N34: 0.000125109375 | O34: 0.15013125 | P34: 236.4 | Q34: 509.4 | R34: 0.00299 | S34: 0.6640449438 | T34: 0.09007875 | U34: 0.0212 | V34: 0.005888888889 | X34: 0.12 | Y34: 0.00434
A35: 0.23 | B35: 0.7805555025 | C35: 506.3861391 | L35: 6 | M35: 0.0765 | N35: 0.00015013125 | O35: 0.1801575 | P35: 236.3 | Q35: 509.3 | R35: 0.00266 | S35: 0.7011235955 | T35: 0.120105 | U35: 0.0145 | V35: 0.004027777778 | X35: 0.15 | Y35: 0.00351
A36: 0.24 | B36: 0.791224654 | C36: 505.8793159 | L36: 7 | M36: 0.08925 | N36: 0.000175153125 | O36: 0.21018375 | P36: 235.4 | Q36: 508.4 | R36: 0.00236 | S36: 0.7348314607 | T36: 0.15013125 | U36: 0.0118 | V36: 0.003277777778 | X36: 0.17 | Y36: 0.0032
A37: 0.25 | B37: 0.801645523 | C37: 505.3311056 | L37: 8 | M37: 0.102 | N37: 0.000200175 | O37: 0.24021 | P37: 234 | Q37: 507 | R37: 0.00207 | S37: 0.7674157303 | T37: 0.1801575 | U37: 0.0105 | V37: 0.002916666667 | X37: 0.2 | Y37: 0.0029
A38: 0.26 | B38: 0.8118271888 | C38: 504.7442158 | L38: 9 | M38: 0.11475 | N38: 0.000225196875 | O38: 0.27023625 | P38: 232.3 | Q38: 505.3 | R38: 0.00181 | S38: 0.7966292135 | T38: 0.21018375 | U38: 0.00967 | V38: 0.002686111111 | X38: 0.3 | Y38: 0.00227
A39: 0.27 | B39: 0.8217753893 | C39: 504.1206079 | L39: 10 | M39: 0.1275 | N39: 0.00025021875 | O39: 0.3002625 | P39: 230.4 | Q39: 503.4 | R39: 0.00157 | S39: 0.8235955056 | T39: 0.24021 | U39: 0.009 | V39: 0.0025 | X39: 0.4 | Y39: 0.0016
A40: 0.28 | B40: 0.8314931146 | C40: 503.4616348 | L40: 11 | M40: 0.14025 | N40: 0.000275240625 | O40: 0.33028875 | P40: 228.2 | Q40: 501.2 | R40: 0.00133 | S40: 0.8505617978 | T40: 0.27023625 | U40: 0.0085 | V40: 0.002361111111 | X40: 0.5 | Y40: 0.00078
A41: 0.29 | B41: 0.8409810697 | C41: 502.7681484 | L41: 12 | M41: 0.153 | N41: 0.0003002625 | O41: 0.360315 | P41: 225.7 | Q41: 498.7 | R41: 0.00111 | S41: 0.8752808989 | T41: 0.3002625 | U41: 0.008 | V41: 0.002222222222 | X41: 0.6 | Y41: 0.0002
A42: 0.3 | B42: 0.8502380413 | C42: 502.0405861 | L42: 13 | M42: 0.16575 | N42: 0.000325284375 | O42: 0.39034125 | P42: 223 | Q42: 496 | R42: 0.00091 | S42: 0.897752809 | T42: 0.33028875 | U42: 0.0075 | V42: 0.002083333333
A43: 0.31 | B43: 0.8592611927 | C43: 501.2790394 | L43: 14 | M43: 0.1785 | N43: 0.00035030625 | O43: 0.4203675 | P43: 220 | Q43: 493 | R43: 0.00073 | S43: 0.9179775281 | T43: 0.360315 | U43: 0.00698 | V43: 0.001938888889
A44: 0.32 | B44: 0.8680463065 | C44: 500.4833119 | L44: 15 | M44: 0.19125 | N44: 0.000375328125 | O44: 0.45039375 | P44: 216.7 | Q44: 489.7 | R44: 0.00057 | S44: 0.9359550562 | T44: 0.39034125 | U44: 0.0064 | V44: 0.001777777778
A45: 0.33 | B45: 0.8765879898 | C45: 499.652967 | L45: 16 | M45: 0.204 | N45: 0.00040035 | O45: 0.48042 | P45: 213.1 | Q45: 486.1 | R45: 0.00043 | S45: 0.9516853933 | T45: 0.4203675 | U45: 0.0057 | V45: 0.001583333333
A46: 0.34 | B46: 0.8848798529 | C46: 498.7873702 | L46: 17 | M46: 0.21675 | N46: 0.000425371875 | O46: 0.51044625 | P46: 209.1 | Q46: 482.1 | R46: 0.00031 | S46: 0.9651685393 | T46: 0.45039375 | U46: 0.00505 | V46: 0.001402777778
A47: 0.35 | B47: 0.8929146735 | C47: 497.8857271 | L47: 18 | M47: 0.2295 | N47: 0.00045039375 | O47: 0.5404725 | P47: 204.8 | Q47: 477.8 | R47: 0.000215 | S47: 0.9758426966 | T47: 0.48042 | U47: 0.0043 | V47: 0.001194444444
A48: 0.36 | B48: 0.900684553 | C48: 496.9471191 | L48: 19 | M48: 0.24225 | N48: 0.000475415625 | O48: 0.57049875 | P48: 200.2 | Q48: 473.2 | R48: 0.000143 | S48: 0.9839325843 | T48: 0.51044625 | U48: 0.0035 | V48: 0.0009722222222
A49: 0.37 | B49: 0.9081810743 | C49: 495.9705391 | L49: 20 | M49: 0.255 | N49: 0.0005004375 | O49: 0.600525 | P49: 195.3 | Q49: 468.3 | R49: 9e-05 | S49: 0.9898876404 | T49: 0.5404725 | U49: 0.0027 | V49: 0.00075
A50: 0.38 | B50: 0.915395466 | C50: 494.9549273 | T50: 0.57049875 | U50: 0.002 | V50: 0.0005555555556
A51: 0.39 | B51: 0.9223187809 | C51: 493.8992096 | T51: 0.600525 | U51: 0.0014 | V51: 0.0003888888889
A52: 0.4 | B52: 0.9289420925 | C52: 492.802339
A53: 0.41 | B53: 0.9352567144 | C53: 491.6633412
A54: 0.42 | B54: 0.9412544448 | C54: 490.4813641
A55: 0.43 | B55: 0.9469278367 | C55: 489.2557316 | M55: 0.1 | N55: 373.15
A56: 0.44 | B56: 0.9522704915 | C56: 487.9860021 | M56: 0.6 | N56: 373.15
A57: 0.45 | B57: 0.9572773713 | C57: 486.6720285
A58: 0.46 | B58: 0.9619451191 | C58: 485.3140196
A59: 0.47 | B59: 0.9662723738 | C59: 483.9125986
A60: 0.48 | B60: 0.9702600618 | C60: 482.4688555
A61: 0.49 | B61: 0.9739116441 | C61: 480.9843894
A62: 0.5 | B62: 0.977233293 | C62: 479.4613347
A63: 0.51 | B63: 0.9802339785 | C63: 477.9023682
A64: 0.52 | B64: 0.982925443 | C64: 476.3106927
A65: 0.53 | B65: 0.9853220516 | C65: 474.6899942
A66: 0.54 | B66: 0.9874405187 | C66: 473.0443749
A67: 0.55 | B67: 0.9892995181 | C67: 471.3782626
A68: 0.56 | B68: 0.9909192014 | C68: 469.6963034
A69: 0.57 | B69: 0.9923206562 | C69: 468.003243
A70: 0.58 | B70: 0.9935253435 | C70: 466.3038072
A71: 0.59 | B71: 0.9945545531 | C71: 464.6025883
A72: 0.6 | B72: 0.995428915 | C72: 462.9039453

Sheet BASIC化プロ1985
A1: p. 149 例題10.3 触媒反応器内の温度・反応率分布 | I1: 管径R0=0.025m ρb=1200 kg/m3
A2: L | B2: W | D2: T | E2: T
A3: m | B3: kg | C3: xA | D3: ℃ | E3: K
A4: 0 | B4: =A4*(3.14)*0.025^2*1200 -> 0 | C4: 0 | D4: 125 | E4: =D4+273.15 -> 398.15
A5: 0.005762 | B5: =A5*(3.14)*0.025^2*1200 -> 0.01356951 | C5: 0.05 | D5: 134.4 | E5: =D5+273.15 -> 407.55
A6: 0.00981 | B6: 0.02310255 | C6: 0.1 | D6: 143.9 | E6: 417.05
A7: 0.0128 | B7: 0.030144 | C7: 0.15 | D7: 153.4 | E7: 426.55
A8: 0.0151 | B8: 0.0355605 | C8: 0.2 | D8: 162.99 | E8: 436.14
A9: 0.0171 | B9: 0.0402705 | C9: 0.25 | D9: 172.53 | E9: 445.68
A10: 0.0189 | B10: 0.0445095 | C10: 0.3 | D10: 182.14 | E10: 455.29
A11: 0.0207 | B11: 0.0487485 | C11: 0.35 | D11: 191.61 | E11: 464.76
A12: 0.0227 | B12: 0.0534585 | C12: 0.4 | D12: 200.92 | E12: 474.07
A13: 0.0251 | B13: 0.0591105 | C13: 0.45 | D13: 209.91 | E13: 483.06
A14: 0.0283 | B14: 0.0666465 | C14: 0.5 | D14: 218.38 | E14: 491.53
A15: 0.0328 | B15: 0.077244 | C15: 0.55 | D15: 225.98 | E15: 499.13
A16: 0.0392 | B16: 0.092316 | C16: 0.6 | D16: 232.2 | E16: 505.35
A17: 0.0482 | B17: 0.113511 | C17: 0.65 | D17: 236.66 | E17: 509.81
A18: 0.0601 | B18: 0.1415355 | C18: 0.7 | D18: 238.98 | E18: 512.13
A19: 0.075 | B19: 0.176625 | C19: 0.75 | D19: 239.28 | E19: 512.43
A20: 0.0926 | B20: 0.218073 | C20: 0.8 | D20: 237.81 | E20: 510.96
A21: 0.1129 | B21: 0.2658795 | C21: 0.85 | D21: 234.75 | E21: 507.9
A22: 0.1369 | B22: 0.3223995 | C22: 0.9 | D22: 229.76 | E22: 502.91
A23: 0.1682 | B23: 0.396111 | C23: 0.95 | D23: 221.13 | E23: 494.28

Sheet Stream report
B2: Stream | C2: Feed | D2: Products | F2: PFR
B3: Pressure / [kPa] | C3: 126.7 | D3: 112.312 | F3: Parameter | G3: Value
B4: Temperature / [K] | C4: 398.15 | D4: 468.214 | F4: Benzene conversion | G4: 0.989864
B5: Flow rate / [mol / s] | C5: 0.07688 | D5: 0.0695154
B6: Flow Benzene / [mol / s] | C6: 0.00248 | D6: 2.51373e-05
B7: Flow Hydrogen / [mol / s] | C7: 0.0744 | D7: 0.0670354
B8: Flow Cyclohexane / [mol / s] | C8: 0 | D8: 0.00245486
